bitfinex-derivatives/quotes_SOLF0:USTF0_20260218
["timestamp","ask_amount","ask_price","bid_price","bid_amount"]
[1771453388543,14.20173243,81.17,81.127,11.0986]
[1771453388748,11.0929,81.17,81.127,11.0986]
[1771453389152,3.10883243,81.19,81.14,3.10883243]
[1771453389352,3.10883243,81.2,81.14,3.10883243]
[1771453389953,3.10883243,81.22,81.16,3.10883243]
[1771453390248,3.10883243,81.22,81.103,209.677]
[1771453390249,3.10883243,81.2,81.15,3.10883243]
[1771453390453,11.0898,81.193,81.151,11.0953]
[1771453393353,3.10883243,81.2,81.151,11.0953]
[1771453394951,3.10883243,81.18,81.143,11.0964]
[1771453395961,3.10883243,81.18,81.136,11.0974]
[1771453401962,11.0917,81.179,81.136,11.0974]
[1771453402464,11.0917,81.179,81.101,12.31]
[1771453402465,3.10883243,81.16,81.127,11.0986]
[1771453404869,11.0943,81.159,81.117,11.1]
[1771453409664,3.10883243,81.15,81.105,23.05666938]
[1771453409866,3.10883243,81.14,81.087,23.02885364]
[1771453410065,3.10883243,81.15,81.1,3.10883243]
[1771453410265,11.0962,81.145,81.101,11.1021]
[1771453414964,77.58,81.174,81.062,12.31]
[1771453414965,3.10883243,81.11,81.072,23.02885364]
[1771453415172,3.10883243,81.11,81.05,65.10883243]
[1771453415466,3.10883243,81.13,81.07,3.10883243]
[1771453416371,11.1004,81.115,81.07,3.10883243]
[1771453416570,3.10883243,81.11,81.06,3.10883243]
[1771453417478,3.10883243,81.11,81.052,11.1088]
[1771453417679,11.1013,81.108,81.06,3.10883243]
[1771453417976,11.1013,81.108,81.052,11.1088]
[1771453418172,11.1013,81.108,81.06,3.10883243]
[1771453418878,11.1026,81.099,81.05,3.10883243]
[1771453419482,11.1014,81.108,81.06,3.10883243]
[1771453420377,11.1024,81.1,81.06,3.10883243]
[1771453420867,3.10883243,81.11,81.06,3.10883243]
[1771453420868,11.1035,81.092,81.06,3.10883243]
[1771453421274,11.1035,81.092,81.008,2.14647866]
[1771453421275,11.1035,81.092,81.05,3.10883243]
[1771453421480,11.1035,81.092,81.04,3.10883243]
[1771453421680,11.1041,81.088,81.04,3.10883243]
[1771453422076,3.10883243,81.09,81.01,62.0]
[1771453422277,3.10883243,81.09,81.03,3.10883243]
[1771453423082,3.10883243,81.08,81.03,3.10883243]
[1771453423384,3.10883243,81.09,81.04,3.10883243]
[1771453423572,11.1038,81.09,81.04,3.10883243]
[1771453424085,11.1038,81.09,81.05,3.11641322]
[1771453424281,11.1038,81.09,81.029,11.112]
[1771453424282,11.1038,81.09,81.04,3.11641322]
[1771453424489,3.11641322,81.09,81.03,3.11641322]
[1771453424978,11.1062,81.072,81.03,3.11641322]
[1771453425180,3.11641322,81.1,81.04,3.11641322]
[1771453425378,3.11641322,81.1,81.05,3.11641322]
[1771453425985,14.21881322,81.1,81.05,3.11641322]
[1771453426384,11.1024,81.1,81.05,3.11641322]
[1771453426584,11.1024,81.1,81.06,3.11641322]
[1771453426886,11.104,81.088,81.03,11.1119]
[1771453427079,11.104,81.088,81.04,3.11641322]
[1771453427886,11.104,81.088,81.03,14.22831322]
[1771453428280,11.104,81.088,81.04,3.11641322]
[1771453429175,11.104,81.088,81.05,3.11641322]
[1771453429580,11.1026,81.099,81.05,3.11641322]
[1771453430887,11.104,81.089,81.05,3.11641322]
[1771453431186,11.104,81.089,81.04,3.11641322]
[1771453431975,3.11641322,81.08,81.02,3.11641322]
[1771453432183,3.11641322,81.08,81.03,3.11641322]
[1771453434492,3.11641322,81.08,81.03,14.22831322]
[1771453434991,3.11641322,81.06,81.01,3.11641322]
[1771453435192,3.11641322,81.07,81.01,3.11641322]
[1771453435584,11.1068,81.068,81.019,11.1134]
[1771453436286,11.1083,81.057,81.011,11.1145]
[1771453438183,3.11641322,81.06,81.011,11.1145]
[1771453439191,11.1072,81.065,81.02,3.11641322]
[1771453439585,11.1082,81.058,81.011,11.1145]
[1771453440693,11.1082,81.058,81.01,3.11641322]
[1771453441790,11.1082,81.058,81.01,14.23101322]
[1771453442394,43.68,81.089,80.988,77.58]
[1771453442395,11.1067,81.068,81.02,3.11641322]
[1771453442586,3.11641322,81.08,81.03,3.11641322]
[1771453442782,43.68,81.089,81.04,3.11641322]
[1771453443794,11.1058,81.076,81.04,3.11641322]
[1771453443991,11.1058,81.076,81.033,11.1115]
[1771453444794,11.1041,81.087,81.04,3.11641322]
[1771453445495,11.1041,81.087,81.05,3.11641322]
[1771453446300,3.11641322,81.1,81.05,3.11641322]
[1771453446494,3.11641322,81.1,81.04,3.11641322]
[1771453446700,3.11641322,81.11,81.05,3.11641322]
[1771453447495,3.11641322,81.1,81.05,3.11641322]
[1771453447695,11.1028,81.097,81.06,3.11641322]
[1771453448397,11.1018,81.105,81.06,3.11641322]
[1771453448598,3.11641322,81.11,81.06,3.11641322]
[1771453448998,11.1027,81.098,81.05,3.11641322]
[1771453450405,3.11641322,81.1,81.051,11.1089]
[1771453450702,11.1017,81.106,81.06,3.11641322]
[1771453451403,3.11641322,81.11,81.04,77.6]
[1771453451404,11.1025,81.099,81.05,3.11641322]
[1771453452906,11.1025,81.099,81.051,11.109]
[1771453455107,11.1034,81.093,81.043,11.1101]
[1771453455704,46.30436007,81.121,81.04,3.11641322]
[1771453455705,3.11641322,81.09,81.04,3.11641322]
[1771453456009,3.11641322,81.09,81.035,11.1111]
[1771453456809,11.105,81.081,81.035,11.1111]
[1771453457799,3.11641322,81.08,81.035,11.1111]
[1771453459714,11.1053,81.079,81.035,11.1111]
[1771453460206,11.1053,81.079,81.03,3.11641322]
[1771453460207,11.1062,81.073,81.03,3.11641322]
[1771453460510,3.11641322,81.07,81.028,11.1122]
[1771453462613,11.1062,81.073,81.028,11.1122]
[1771453463414,11.1062,81.073,81.032,11.1116]
[1771453465701,3.11641322,81.08,81.032,11.1116]
[1771453465910,3.11641322,81.09,81.038,11.1107]
[1771453466813,11.1052,81.079,81.038,11.1107]
[1771453469610,11.1062,81.072,81.03,14.22831322]
[1771453471113,11.1053,81.079,81.037,11.111]
[1771453471519,3.11641322,81.1,81.05,3.11641322]
[1771453472715,11.1028,81.097,81.05,14.22561322]
[1771453474308,3.11641322,81.1,81.056,11.1083]
[1771453476921,11.1038,81.09,81.04,3.11641322]
[1771453477324,3.11641322,81.1,81.04,3.11641322]
[1771453478022,3.11641322,81.1,81.05,11.1091]
[1771453479730,11.1036,81.092,81.05,11.1091]
[1771453480832,3.11641322,81.09,81.05,11.1091]
[1771453481626,3.11641322,81.12,81.06,3.11641322]
[1771453482827,11.1003,81.115,81.067,11.1068]
[1771453483230,3.11641322,81.11,81.061,11.1077]
[1771453484136,14.21751322,81.11,81.061,11.1077]
[1771453485233,14.21751322,81.11,81.068,11.1067]
[1771453486027,14.21680531,81.11,81.068,11.1067]
[1771453487835,14.21680531,81.11,81.018,30.63610555]
[1771453487836,3.11570531,81.09,81.03,3.11570531]
[1771453489238,11.1039,81.089,81.036,11.1111]
[1771453493239,11.1047,81.083,81.036,11.1111]
[1771453494638,3.11570531,81.1,81.044,11.1099]
[1771453495129,11.1037,81.091,81.044,11.1099]
[1771453500241,11.1037,81.091,81.04,3.11570531]
[1771453500242,3.11570531,81.11,81.05,3.11570531]
[1771453500544,43.68,81.109,81.05,3.11570531]
[1771453500845,11.1039,81.089,81.05,3.11570531]
[1771453501541,11.1026,81.099,81.052,11.1089]
[1771453501739,43.68,81.109,81.06,3.11570531]
[1771453502045,3.11570531,81.12,81.06,3.11570531]
[1771453502236,52.73297757,81.138,81.021,12.31]
[1771453502237,3.11570531,81.13,81.071,11.1062]
[1771453502647,3.11570531,81.13,81.035,30.63610555]
[1771453502648,3.11570531,81.13,81.08,3.11570531]
[1771453503636,11.0991,81.124,81.08,3.11570531]
[1771453504948,11.1004,81.115,81.066,11.107]
[1771453506236,11.1004,81.115,81.073,11.106]
[1771453507137,11.1013,81.108,81.06,3.11570531]
[1771453508741,3.11570531,81.09,81.04,3.11570531]
[1771453509643,3.11570531,81.09,81.051,11.1091]
[1771453511550,11.103,81.096,81.051,11.1091]
[1771453513348,11.1039,81.09,81.05,3.11570531]
[1771453516740,11.1047,81.083,81.05,3.11570531]
[1771453516945,11.1047,81.083,81.04,3.11570531]
[1771453518651,11.1047,81.083,81.042,11.1103]
[1771453518949,11.1058,81.076,81.032,23.05558968]
[1771453519750,11.1058,81.076,81.035,11.1112]
[1771453522454,11.1069,81.068,81.03,3.11570531]
[1771453522647,11.1069,81.068,81.021,23.05558968]
[1771453522853,11.1069,81.068,81.02,3.11570531]
[1771453524959,11.1069,81.068,81.02,14.22890531]
[1771453526959,11.1069,81.068,81.03,3.11570531]
[1771453534962,11.1069,81.068,81.02,14.22890531]
[1771453536863,11.1057,81.076,81.027,11.1123]
[1771453537059,3.11570531,81.09,81.03,3.11570531]
[1771453538563,22.1971,81.129,81.05,3.11570531]
[1771453538564,3.11570531,81.1,81.05,3.11570531]
[1771453539663,11.1031,81.095,81.05,3.11570531]
[1771453541263,11.1031,81.095,81.052,11.1089]
[1771453549376,46.79600316,81.11,81.06,3.11600316]
[1771453549770,2.14583674,81.152,81.07,3.11600316]
[1771453549771,3.11600316,81.12,81.07,3.11600316]
[1771453550477,3.11600316,81.13,81.071,11.1062]
[1771453551681,11.0993,81.123,81.08,3.11600316]
[1771453554676,11.0993,81.123,81.081,11.1049]
[1771453556480,11.0993,81.123,81.08,3.11600316]
[1771453556481,11.0978,81.134,81.091,11.1035]
[1771453557889,3.11600316,81.15,81.1,3.11600316]
[1771453557890,11.0964,81.144,81.1,3.11600316]
[1771453559391,11.0973,81.138,81.1,3.11600316]
[1771453560292,11.0953,81.152,81.11,3.11600316]
[1771453560490,37.0,81.178,81.12,3.11600316]
[1771453560694,3.11600316,81.14,81.09,3.11600316]
[1771453560893,11.0972,81.138,81.1,3.11600316]
[1771453561098,3.11600316,81.16,81.1,3.11600316]
[1771453561591,11.097,81.14,81.1,3.11600316]
[1771453561796,14.21300316,81.14,81.09,3.11600316]
[1771453562694,14.21300316,81.14,81.093,11.1032]
[1771453563296,3.89035191,81.139,81.094,3.7585374]
[1771453564804,3.89035191,81.139,81.097,14.8612374]
[1771453566199,3.89035191,81.139,81.1,3.7585374]
[1771453566403,3.89035191,81.139,81.101,3.7585374]
[1771453566703,3.89035191,81.146,81.101,3.7585374]
[1771453567699,3.89035191,81.146,81.11,3.7585374]
[1771453567903,3.89035191,81.146,81.11,6.87454056]
[1771453568101,3.89035191,81.146,81.121,3.7585374]
[1771453569807,3.89035191,81.146,81.121,14.8580374]
[1771453570607,3.89035191,81.159,81.122,3.7585374]
[1771453572200,3.89035191,81.159,81.07,35.36558968]
[1771453572201,3.89035191,81.159,81.129,3.7585374]
[1771453573706,3.89035191,81.159,81.132,3.7585374]
[1771453575904,3.89035191,81.169,81.132,3.7585374]
[1771453576606,3.89035191,81.169,81.088,22.2079]
[1771453576607,3.89035191,81.187,81.151,3.7585374]
[1771453577097,3.89035191,81.187,81.16,3.11600316]
[1771453577903,3.89035191,81.187,81.159,3.7585374]
[1771453578805,11.0867,81.215,81.171,3.7585374]
[1771453580904,3.57661822,81.214,81.171,3.7585374]
[1771453581704,3.57661822,81.214,81.121,12.33]
[1771453581705,3.57661822,81.214,81.181,3.7585374]
[1771453582914,3.11600316,81.23,81.191,3.7585374]
[1771453582915,3.58476526,81.23,81.191,3.7585374]
[1771453584917,3.62417268,81.228,81.191,3.7585374]
[1771453585818,3.62417268,81.228,81.193,3.7585374]
[1771453590020,3.62417268,81.228,81.197,3.97797587]
[1771453599027,3.62417268,81.228,81.198,15.06687587]
[1771453599529,3.65668342,81.238,81.199,3.97797587]
[1771453599830,3.65668342,81.229,81.192,11.0897]
[1771453600431,3.65668342,81.209,81.149,3.97797587]
[1771453600626,3.65668342,81.199,81.151,3.97797587]
[1771453601732,3.65668342,81.199,81.167,11.0932]
[1771453602429,3.65668342,81.199,81.167,15.07117587]
[1771453603134,3.65668342,81.199,81.15,3.11600316]
[1771453603135,3.65668342,81.199,81.172,11.0924]
[1771453606538,3.65668342,81.199,81.168,3.97797587]
[1771453608135,3.65668342,81.199,81.169,11.0928]
[1771453609644,3.65668342,81.199,81.16,11.0941]
[1771453610244,3.65668342,81.199,81.16,15.07207587]
[1771453610444,3.65668342,81.199,81.161,3.97797587]
[1771453613147,3.67692002,81.208,81.165,3.97797587]
[1771453614648,3.67692002,81.208,81.168,11.093]
[1771453614848,3.67692002,81.208,81.169,3.97797587]
[1771453615448,3.67692002,81.208,81.172,3.97797587]
[1771453616748,3.67692002,81.208,81.174,3.97797587]
[1771453618846,3.68163084,81.202,81.174,3.97797587]
[1771453622252,3.68163084,81.202,81.165,4.00010272]
[1771453622453,3.68163084,81.202,81.168,4.00010272]
[1771453623454,3.68163084,81.202,81.17,4.00010272]
[1771453624549,3.68163084,81.202,81.172,4.00010272]
[1771453624857,3.10814004,81.21,81.172,4.00010272]
[1771453625057,3.65883127,81.209,81.172,4.00010272]
[1771453625258,1.0,81.202,81.172,4.00010272]
[1771453645074,1.0,81.202,81.174,4.00010272]
[1771453647773,1.0,81.202,81.176,4.00010272]
[1771453648374,4.65239545,81.202,81.176,4.00010272]
[1771453659070,1.0,81.202,81.176,4.00010272]
[1771453680091,3.78240803,81.228,81.19,3.70858006]
[1771453681689,3.78240803,81.219,81.19,3.70858006]
[1771453685096,3.78240803,81.217,81.17,3.70858006]
[1771453685298,77.6,81.24,81.17,3.70858006]
[1771453685299,6.8894189,81.2,81.17,3.70858006]
[1771453685491,3.78240803,81.199,81.17,3.70858006]
[1771453685888,3.78240803,81.19,81.151,3.70858006]
[1771453686088,3.78240803,81.189,81.151,3.70858006]
[1771453686596,3.78240803,81.188,81.151,3.70858006]
[1771453687395,3.78240803,81.186,81.151,3.70858006]
[1771453687694,6.8894189,81.18,81.151,3.70858006]
[1771453688691,3.10701087,81.17,81.14,3.70858006]
[1771453688996,3.78240803,81.169,81.14,3.70858006]
[1771453689695,3.78240803,81.169,81.127,3.70858006]
[1771453690098,3.78240803,81.169,81.13,3.70858006]
[1771453692599,3.78240803,81.167,81.13,3.70858006]
[1771453696801,3.78240803,81.165,81.13,3.70858006]
[1771453703302,11.0919,81.177,81.131,3.70858006]
[1771453703507,11.0919,81.177,81.141,3.70858006]
[1771453704405,14.87430803,81.177,81.141,3.70858006]
[1771453706708,3.78240803,81.179,81.141,3.70858006]
[1771453707809,11.0925,81.172,81.141,3.70858006]
[1771453710010,3.78240803,81.179,81.141,3.70858006]
[1771453711712,11.0926,81.172,81.141,3.70858006]
[1771453719915,11.0907,81.185,81.144,4.06856784]
[1771453720112,11.0907,81.185,81.151,4.06856784]
[1771453724418,4.03679796,81.2,81.161,4.06856784]
[1771453725724,4.03679796,81.199,81.161,4.06856784]
[1771453726421,4.03679796,81.195,81.161,4.06856784]
[1771453727822,15.12669796,81.192,81.161,4.06856784]
[1771453731626,4.03679796,81.191,81.161,4.06856784]
[1771453733730,11.0901,81.19,81.161,4.06856784]
[1771453736723,4.03679796,81.191,81.161,4.06856784]
[1771453740529,3.78150628,81.19,81.161,4.06856784]
[1771453750546,3.10780768,81.23,81.171,3.80309188]
[1771453751054,11.0866,81.216,81.171,3.80309188]
[1771453751240,3.10780768,81.22,81.171,3.80309188]
[1771453752444,1.02945248,81.219,81.171,3.80309188]
[1771453752645,11.0874,81.21,81.171,3.80309188]
[1771453754045,1.02945248,81.219,81.177,3.80309188]
[1771453759658,0.87808157,81.217,81.177,3.80309188]
[1771453762758,0.87808157,81.217,81.178,11.0916]
[1771453763057,0.87808157,81.217,81.178,14.89469188]
[1771453763758,0.87808157,81.217,81.18,14.89449188]
[1771453763959,0.87808157,81.217,81.181,3.80309188]
[1771453770262,0.8253836,81.207,81.181,3.80309188]
[1771453770454,0.8253836,81.207,81.167,3.98829219]
[1771453771968,11.92944005,81.206,81.167,3.98829219]
[1771453779969,11.92944005,81.206,81.169,3.98829219]
[1771453781172,11.087,81.213,81.169,3.98829219]
[1771453781370,11.087,81.213,81.171,3.98829219]
[1771453782770,11.087,81.213,81.172,3.98829219]
[1771453785563,0.84402477,81.208,81.172,3.98829219]
[1771453785763,0.84402477,81.208,81.163,3.98829219]
[1771453787369,0.83391414,81.199,81.163,3.98829219]
[1771453788174,0.83391414,81.199,81.164,3.98829219]
[1771453789085,0.82151717,81.209,81.166,3.98829219]
[1771453790672,0.82151717,81.209,81.169,3.98829219]
[1771453794082,0.82151717,81.209,81.171,3.98829219]
[1771453797379,0.85663989,81.207,81.171,3.98829219]
[1771453798688,0.86059224,81.199,81.159,26.83891431]
[1771453798982,0.84254263,81.179,81.15,3.78332463]
[1771453799180,0.84254263,81.169,81.141,3.78332463]
[1771453800881,0.86935583,81.202,81.161,3.72276626]
[1771453801885,0.86935583,81.199,81.161,3.72276626]
[1771453802084,9.08780859,81.227,81.171,3.72276626]
[1771453802380,0.86935583,81.226,81.171,3.72276626]
[1771453802785,0.86935583,81.218,81.171,3.72276626]
[1771453805988,0.83095526,81.216,81.171,3.72276626]
[1771453806991,0.83095526,81.216,81.173,3.72276626]
[1771453808390,0.83095526,81.216,81.172,11.0925]
[1771453808391,3.10674693,81.23,81.181,3.72276626]
[1771453808692,0.82667602,81.232,81.181,3.72276626]
[1771453808994,0.83096468,81.23,81.182,3.72276626]
[1771453810285,0.83096468,81.225,81.182,3.72276626]
[1771453812095,11.0842,81.233,81.191,3.72276626]
[1771453812282,3.10674693,81.23,81.19,3.72276626]
[1771453812487,0.83718174,81.229,81.19,3.72276626]
[1771453812688,0.83718174,81.227,81.19,3.72276626]
[1771453812889,0.83718174,81.227,81.17,26.16233661]
[1771453813193,0.83718174,81.227,81.181,3.72276626]
[1771453814696,0.83409142,81.225,81.183,3.72276626]
[1771453815396,0.83409142,81.225,81.188,3.72276626]
[1771453819990,0.83409142,81.225,81.176,3.72276626]
[1771453820694,0.87075922,81.219,81.176,3.72276626]
[1771453821698,0.77902881,81.218,81.178,3.72276626]
[1771453825406,0.77902881,81.218,81.18,11.0914]
[1771453825598,0.77902881,81.218,81.181,3.72276626]
[1771453828710,11.0865,81.216,81.181,3.72276626]
[1771453830607,9.07515775,81.235,81.193,3.79011427]
[1771453830807,0.80580495,81.24,81.193,3.79011427]
[1771453831010,43.68,81.241,81.193,3.79011427]
[1771453831011,0.80709994,81.229,81.193,3.79011427]
[1771453831308,0.80709994,81.227,81.193,3.79011427]
[1771453832312,11.0861,81.219,81.181,3.79011427]
[1771453840706,12.00767972,81.23,81.187,3.79011427]
[1771453841103,0.9276483,81.229,81.187,3.79011427]
[1771453842813,12.0125483,81.228,81.189,3.79011427]
[1771453843406,0.93013262,81.227,81.189,3.79011427]
[1771453844917,11.0849,81.228,81.189,3.79011427]
[1771453849808,11.0849,81.228,81.19,3.10674693]
[1771453850116,11.0849,81.228,81.191,3.79011427]
[1771453850805,11.1849,81.228,81.191,3.79011427]
[1771453858523,11.0862,81.218,81.191,3.79011427]
[1771453863230,0.94344988,81.221,81.191,3.79011427]
[1771453863726,0.94344988,81.221,81.181,3.91684047]
[1771453868136,0.1,81.228,81.191,3.91684047]
[1771453868727,0.1,81.228,81.154,12.33]
[1771453868728,0.1,81.228,81.201,3.91684047]
[1771453868928,0.89329559,81.259,81.221,3.91684047]
[1771453869830,0.89329559,81.259,81.225,11.0851]
[1771453870135,0.89329559,81.259,81.2,23.05558968]
[1771453870136,0.89329559,81.278,81.241,3.91684047]
[1771453870635,0.89329559,81.29,81.252,3.91684047]
[1771453870835,0.89329559,81.301,81.261,3.91684047]
[1771453871536,0.89329559,81.301,81.27,7.02184595]
[1771453871931,77.56,81.331,81.258,77.56]
[1771453871932,11.98850577,81.325,81.281,3.91684047]
[1771453872139,0.91690577,81.324,81.281,3.91684047]
[1771453872733,0.91690577,81.324,81.291,3.91684047]
[1771453873735,0.91690577,81.324,81.24,23.014615]
[1771453873736,0.88988995,81.329,81.281,3.91684047]
[1771453875126,0.88988995,81.329,81.291,3.91684047]
[1771453875336,0.88988995,81.329,81.28,7.02184595]
[1771453875532,0.88988995,81.329,81.281,3.91684047]
[1771453875936,0.88988995,81.329,81.29,3.10500548]
[1771453876137,0.88988995,81.329,81.29,7.02184595]
[1771453877037,0.88988995,81.329,81.29,3.91684047]
[1771453878041,0.88988995,81.329,81.233,12.5601098]
[1771453878042,0.62349067,81.309,81.265,3.91684047]
[1771453880540,0.62215173,81.307,81.265,3.91684047]
[1771453882636,0.62215173,81.307,81.254,11.0812]
[1771453882637,0.82707818,81.299,81.254,3.91684047]
[1771453882943,0.82707818,81.289,81.241,3.91684047]
[1771453883443,0.82707818,81.289,81.243,11.0827]
[1771453883740,0.82707818,81.289,81.244,3.91684047]
[1771453885045,0.82707818,81.289,81.251,3.91684047]
[1771453886646,0.82659178,81.287,81.251,3.91684047]
[1771453887644,11.077,81.286,81.251,3.91684047]
[1771453887846,11.89584,81.286,81.251,3.91684047]
[1771453888036,0.81884,81.285,81.251,3.91684047]
[1771453890646,0.80586808,81.282,81.251,3.91684047]
[1771453890843,3.92203971,81.28,81.237,3.87161813]
[1771453893351,0.81703423,81.28,81.237,3.87161813]
[1771453896753,3.10500548,81.29,81.241,3.87161813]
[1771453897058,1.00714534,81.299,81.241,3.87161813]
[1771453897752,11.0753,81.298,81.245,11.0824]
[1771453898061,3.10500548,81.29,81.246,3.87161813]
[1771453898964,11.076,81.293,81.246,3.87161813]
[1771453899666,3.10500548,81.29,81.246,3.87161813]
[1771453900157,3.10500548,81.29,81.247,11.0821]
[1771453900468,11.076,81.293,81.248,3.87161813]
[1771453901762,11.076,81.293,81.251,3.87161813]
[1771453902560,1.00714534,81.297,81.251,3.87161813]
[1771453903761,11.076,81.294,81.251,3.87161813]
[1771453905665,12.09017219,81.294,81.251,3.87161813]
[1771453907562,1.01210188,81.293,81.251,3.87161813]
[1771453910269,1.01210188,81.293,81.253,3.87161813]
[1771453912367,11.0763,81.291,81.253,3.87161813]
[1771453912672,1.01201581,81.306,81.255,3.87161813]
[1771453913476,1.00661762,81.299,81.255,3.87161813]
[1771453914370,1.00661762,81.299,81.256,3.87161813]
[1771453915769,11.39330747,81.362,81.26,3.87161813]
[1771453915972,11.39330747,81.362,81.23,517.2794]
[1771453915973,0.99662616,81.349,81.301,3.87161813]
[1771453916164,3.10034294,81.36,81.311,3.87161813]
[1771453916363,0.99662616,81.361,81.311,3.87161813]
[1771453917663,77.5,81.369,81.321,3.87161813]
[1771453917875,1.07987026,81.373,81.331,3.91739401]
[1771453919070,1.51755571,81.349,81.311,3.91739401]
[1771453920273,1.52413981,81.339,81.291,3.7269539]
[1771453920575,3.10034294,81.31,81.272,3.7269539]
[1771453922670,3.10034294,81.29,81.241,3.7269539]
[1771453923071,3.10034294,81.28,81.241,3.7269539]
[1771453923481,77.48,81.288,81.241,3.7269539]
[1771453924480,77.48,81.295,81.251,3.7269539]
[1771453924681,77.48,81.294,81.251,3.7269539]
[1771453925374,1.47124889,81.308,81.251,3.7269539]
[1771453925577,77.48,81.297,81.251,3.7269539]
[1771453925781,77.48,81.297,81.253,3.7269539]
[1771453926582,77.48,81.296,81.253,3.7269539]
[1771453926776,77.48,81.296,81.255,3.7269539]
[1771453927276,77.48,81.296,81.25,3.10034294]
[1771453927277,77.5,81.295,81.257,3.7269539]
[1771453929569,77.5,81.295,81.26,3.7269539]
[1771453929775,1.47124889,81.308,81.26,3.7269539]
[1771453930082,1.47124889,81.308,81.261,3.7269539]
[1771453930287,77.5,81.307,81.261,3.7269539]
[1771453930775,78.94388119,81.307,81.267,11.0795]
[1771453931082,1.44407326,81.306,81.267,11.0795]
[1771453932076,1.54407326,81.306,81.267,11.0795]
[1771453933080,77.5,81.305,81.267,11.0795]
[1771453933477,78.94550233,81.305,81.267,11.0795]
[1771453933677,1.44550233,81.304,81.267,11.0795]
[1771453937580,1.44550233,81.304,81.268,3.7269539]
[1771453937780,54.2416,81.313,81.281,3.7269539]
[1771453937982,77.5,81.312,81.281,3.7269539]
[1771453938184,1.44777237,81.328,81.281,3.7269539]
[1771453938586,77.5,81.327,81.281,3.7269539]
[1771453938783,77.5,81.327,81.295,11.0757]
[1771453938979,1.44777237,81.328,81.295,11.0757]
[1771453939179,3.10034294,81.32,81.281,3.7269539]
[1771453939375,77.5,81.319,81.281,3.7269539]
[1771453939778,77.5,81.319,81.282,11.0774]
[1771453940787,3.10034294,81.31,81.274,11.0785]
[1771453940988,1.47099527,81.317,81.275,3.7269539]
[1771453941790,1.47099527,81.317,81.278,3.7269539]
[1771453943986,77.5,81.319,81.289,3.7269539]
[1771453944185,3.10034294,81.33,81.289,3.7269539]
[1771453944488,77.5,81.329,81.289,3.7269539]
[1771453944891,78.9554759,81.329,81.289,3.7269539]
[1771453945080,1.4554759,81.328,81.289,3.7269539]
[1771453945483,1.4554759,81.328,81.293,11.076]
[1771453945884,1.4554759,81.328,81.289,3.7269539]
[1771453946486,1.4554759,81.328,81.29,11.0764]
[1771453946689,1.4554759,81.328,81.289,3.7269539]
[1771453946893,77.5,81.327,81.289,3.7269539]
[1771453947691,77.5,81.327,81.29,11.0764]
[1771453948282,77.5,81.327,81.289,3.7269539]
[1771453948883,77.48,81.326,81.289,3.7269539]
[1771453949786,77.48,81.326,81.29,11.0764]
[1771453950493,77.48,81.326,81.291,3.97092926]
[1771453950995,77.48,81.325,81.294,3.97092926]
[1771453954401,1.4554759,81.328,81.294,3.97092926]
[1771453954602,77.48,81.327,81.294,3.97092926]
[1771453957100,77.48,81.326,81.294,3.97092926]
[1771453957901,77.48,81.325,81.294,3.97092926]
[1771453958201,1.49034367,81.324,81.294,3.97092926]
[1771453960405,77.48,81.323,81.294,3.97092926]
[1771453965000,1.49034367,81.324,81.294,3.97092926]
[1771453965203,77.48,81.323,81.294,3.97092926]
[1771453966401,1.49034367,81.324,81.294,3.97092926]
[1771453966601,77.48,81.323,81.294,3.97092926]
[1771453966801,77.48,81.322,81.294,3.97092926]
[1771453967710,1.49034367,81.324,81.294,3.97092926]
[1771453968409,77.48,81.323,81.294,3.97092926]
[1771453968918,77.48,81.322,81.294,3.97092926]
[1771453971112,1.49034367,81.324,81.294,3.97092926]
[1771453971707,77.48,81.323,81.294,3.97092926]
[1771453972601,1.50095906,81.322,81.294,3.97092926]
[1771453972805,77.48,81.321,81.294,3.97092926]
[1771453973009,77.48,81.32,81.294,3.97092926]
[1771453973210,1.50095906,81.322,81.294,3.97092926]
[1771453973211,77.48,81.319,81.294,3.97092926]
[1771453973412,1.50095906,81.322,81.294,3.97092926]
[1771453973413,77.48,81.318,81.294,3.97092926]
[1771453973604,1.50095906,81.322,81.294,3.97092926]
[1771453974005,77.48,81.321,81.294,3.97092926]
[1771453978314,77.48,81.32,81.294,3.97092926]
[1771453980416,77.48,81.319,81.294,3.97092926]
[1771453980719,77.48,81.318,81.294,3.97092926]
[1771453980908,77.48,81.317,81.294,3.97092926]
[1771453981110,77.48,81.316,81.294,3.97092926]
[1771453981706,1.54316353,81.315,81.285,3.92488714]
[1771453981917,1.54316353,81.313,81.274,3.92488714]
[1771453982117,1.54316353,81.309,81.274,3.92488714]